lending/lending_fUSD_20250913
["ID","MTS","AMOUNT","RATE_DAILY","PERIOD"]
[385345782,1757790658409,-401.00431661,0.00027397,2]
[385345785,1757790658422,-400.0,0.00027397,2]
[385345786,1757790658431,-511.89,0.00027397,2]
[385345787,1757790658440,-400.0,0.00027397,2]
[385345788,1757790658450,-400.0,0.00027397,2]
[385345789,1757790658459,-400.0,0.00027397,2]
[385345790,1757790658468,-875.02,0.00027397,2]
[385345791,1757790658478,-400.0,0.00027397,2]
[385345792,1757790658488,-441.06,0.00027397,2]
[385345793,1757790658498,-540.34,0.00027397,2]
[385345794,1757790658507,-432.57,0.00027397,2]
[385345795,1757790658516,-400.0,0.00027397,2]
[385345796,1757790658526,-605.1,0.00027397,2]
[385345797,1757790658535,-402.64844927,0.00027397,2]
[385345798,1757790658545,-400.0,0.00027397,2]
[385345799,1757790658554,-400.0,0.00027397,2]
[385345800,1757790658564,-400.0,0.00027397,2]
[385345801,1757790658573,-400.0,0.00027397,2]
[385345802,1757790658582,-400.0,0.00027397,2]
[385345803,1757790658592,-979.03,0.00027397,2]
[385345804,1757790658601,-407.47628754,0.00027397,2]
[385345805,1757790658610,-400.0,0.00027397,2]
[385345806,1757790658619,-639.66,0.00027397,2]
[385345807,1757790658628,-400.0,0.00027397,2]
[385345808,1757790658637,-400.0,0.00027397,2]
[385345809,1757790658646,-400.0,0.00027397,2]
[385345810,1757790658655,-400.0,0.00027397,2]
[385345811,1757790658664,-400.0,0.00027397,2]
[385345812,1757790658674,-743.92,0.00027397,2]
[385345813,1757790658683,-400.0,0.00027397,2]
[385345814,1757790658692,-386.97468581,0.00027397,2]
[385345815,1757790658702,-400.0,0.00027397,2]
[385345816,1757790658711,-549.77,0.00027397,2]
[385345817,1757790658720,-400.0,0.00027397,2]
[385345818,1757790658729,-400.0,0.00027397,2]
[385345819,1757790658738,-400.0,0.00027397,2]
[385345820,1757790658748,-400.0,0.00027397,2]
[385345821,1757790658758,-400.0,0.00027397,2]
[385345822,1757790658767,-867.52,0.00027397,2]
[385345823,1757790658778,-400.0,0.00027397,2]
[385345824,1757790658788,-757.51,0.00027397,2]
[385345825,1757790658797,-400.0,0.00027397,2]
[385345826,1757790658806,-400.0,0.00027397,2]
[385345827,1757790658816,-400.0,0.00027397,2]
[385345828,1757790658825,-1369.33,0.00027397,2]
[385345829,1757790658835,-976.5,0.00027397,2]
[385345830,1757790658845,-400.0,0.00027397,2]
[385345831,1757790658855,-714.21,0.00027397,2]
[385345832,1757790658864,-1200.51,0.00027397,2]
[385345833,1757790658873,-400.0,0.00027397,2]
[385345834,1757790658882,-429.54,0.00027397,2]
[385345835,1757790658893,-931.9,0.00027397,2]
[385345836,1757790658903,-400.0,0.00027397,2]
[385345837,1757790658912,-400.0,0.00027397,2]
[385345839,1757790658922,-400.0,0.00027397,2]
[385345841,1757790658931,-400.0,0.00027397,2]
[385345843,1757790658941,-400.0,0.00027397,2]
[385345845,1757790658951,-767.06,0.00027397,2]
[385345847,1757790658960,-522.36,0.00027397,2]
[385345849,1757790658970,-400.0,0.00027397,2]
[385345851,1757790658979,-402.48423986,0.00027397,2]
[385345853,1757790658989,-464.29,0.00027397,2]
[385345855,1757790658999,-400.0,0.00027397,2]
[385345857,1757790659010,-400.0,0.00027397,2]
[385345859,1757790659019,-400.0,0.00027397,2]
[385345861,1757790659029,-1050.24,0.00027397,2]
[385345863,1757790659038,-400.0,0.00027397,2]
[385345865,1757790659048,-400.0,0.00027397,2]
[385345867,1757790659058,-400.0,0.00027397,2]
[385345869,1757790659067,-400.0,0.00027397,2]
[385345871,1757790659077,-712.0,0.00027397,2]
[385345873,1757790659087,-400.0,0.00027397,2]
[385345875,1757790659097,-400.0,0.00027397,2]
[385345877,1757790659107,-400.0,0.00027397,2]
[385345879,1757790659117,-400.0,0.00027397,2]
[385345881,1757790659128,-400.0,0.00027397,2]
[385345883,1757790659138,-770.1,0.00027397,2]
[385345885,1757790659148,-1340.61,0.00027397,2]
[385345887,1757790659157,-400.0,0.00027397,2]
[385345889,1757790659167,-503.78,0.00027397,2]
[385345891,1757790659176,-744.56,0.00027397,2]
[385345893,1757790659185,-933.78,0.00027397,2]
[385345895,1757790659194,-500.0,0.00027397,2]
[385345897,1757790659203,-500.0,0.00027397,2]
[385345899,1757790659213,-500.0,0.00027397,2]
[385345901,1757790659222,-400.0,0.00027397,2]
[385345903,1757790659232,-500.0,0.00027397,2]
[385345905,1757790659242,-500.0,0.00027397,2]
[385345907,1757790659251,-400.0,0.00027397,2]
[385345909,1757790659260,-500.0,0.00027397,2]
[385345911,1757790659270,-917.05,0.00027397,2]
[385345913,1757790659279,-500.0,0.00027397,2]
[385345916,1757790659289,-500.0,0.00027397,2]
[385345918,1757790659299,-400.0,0.00027397,2]
[385345919,1757790659309,-500.0,0.00027397,2]
[385345921,1757790659319,-500.0,0.00027397,2]
[385345923,1757790659328,-601.03,0.00027397,2]
[385345925,1757790659337,-500.0,0.00027397,2]
[385345927,1757790659349,-500.0,0.00027397,2]
[385345929,1757790659359,-400.0,0.00027397,2]
[385345931,1757790659369,-400.0,0.00027397,2]
[385345933,1757790659379,-400.0,0.00027397,2]
[385345935,1757790659388,-400.0,0.00027397,2]
[385345937,1757790659398,-1166.06,0.00027397,2]
[385345939,1757790659407,-408.67,0.00027397,2]
[385345941,1757790659420,-744.95,0.00027397,2]
[385345943,1757790659430,-400.0,0.00027397,2]
[385345945,1757790659439,-400.0,0.00027397,2]
[385345947,1757790659448,-400.0,0.00027397,2]
[385345949,1757790659459,-400.0,0.00027397,2]
[385345951,1757790659468,-400.0,0.00027397,2]
[385345953,1757790659477,-962.63,0.00027397,2]
[385345955,1757790659487,-400.0,0.00027397,2]
[385345957,1757790659497,-944.97,0.00027397,2]
[385345959,1757790659507,-697.23,0.00027397,2]
[385345961,1757790659516,-1128.5,0.00027397,2]
[385345963,1757790659526,-400.0,0.00027397,2]
[385345965,1757790659535,-400.0,0.00027397,2]
[385345967,1757790659545,-400.0,0.00027397,2]
[385345969,1757790659555,-400.0,0.00027397,2]
[385345971,1757790659564,-400.0,0.00027397,2]
[385345973,1757790659574,-1287.15,0.00027397,2]
[385345975,1757790659584,-445.78504823,0.00027397,2]
[385345977,1757790659594,-400.0,0.00027397,2]
[385345980,1757790659604,-400.0,0.00027397,2]
[385345982,1757790659614,-1140.31,0.00027397,2]
[385345984,1757790659624,-400.0,0.00027397,2]
[385345986,1757790659634,-400.0,0.00027397,2]
[385345988,1757790659643,-400.0,0.00027397,2]
[385345990,1757790659653,-400.0,0.00027397,2]
[385345992,1757790659663,-400.0,0.00027397,2]
[385345994,1757790659673,-400.0,0.00027397,2]
[385345996,1757790659682,-400.0,0.00027397,2]
[385345998,1757790659695,-400.0,0.00027397,2]
[385346000,1757790659711,-400.0,0.00027397,2]
[385346002,1757790659720,-400.0,0.00027397,2]
[385346004,1757790659729,-400.0,0.00027397,2]
[385346006,1757790659738,-400.0,0.00027397,2]
[385346008,1757790659747,-883.84,0.00027397,2]
[385346010,1757790659756,-1121.16,0.00027397,2]
[385346012,1757790659765,-400.0,0.00027397,2]
[385346014,1757790659775,-400.0,0.00027397,2]
[385346017,1757790659791,-400.0,0.00027397,2]
[385346019,1757790659802,-400.0,0.00027397,2]
[385346021,1757790659812,-766.79,0.00027397,2]
[385346023,1757790659822,-400.0,0.00027397,2]
[385346025,1757790659831,-400.0,0.00027397,2]
[385346027,1757790659840,-400.0,0.00027397,2]
[385346028,1757790659849,-400.0,0.00027397,2]
[385346030,1757790659858,-400.0,0.00027397,2]
[385346032,1757790659868,-516.58,0.00027397,2]
[385346035,1757790659877,-516.58,0.00027397,2]
[385346037,1757790659887,-513.88,0.00027397,2]
[385346039,1757790659896,-516.58,0.00027397,2]
[385346041,1757790659905,-516.58,0.00027397,2]
[385346043,1757790659915,-516.58,0.00027397,2]
[385346045,1757790659925,-516.58,0.00027397,2]
[385346046,1757790659934,-516.58,0.00027397,2]
[385346047,1757790659943,-516.58,0.00027397,2]
[385346048,1757790659952,-836.28,0.00027397,2]
[385346049,1757790659962,-516.58,0.00027397,2]
[385346050,1757790659971,-400.0,0.00027397,2]
[385346051,1757790659981,-516.58,0.00027397,2]
[385346052,1757790659991,-516.58,0.00027397,2]
[385346053,1757790660001,-400.0,0.00027397,2]
[385346054,1757790660011,-516.58,0.00027397,2]
[385346055,1757790660020,-516.58,0.00027397,2]
[385346056,1757790660029,-1062.97,0.00027397,2]
[385346057,1757790660038,-400.0,0.00027397,2]
[385346058,1757790660048,-400.0,0.00027397,2]
[385346059,1757790660059,-400.0,0.00027397,2]
[385346060,1757790660069,-701.46,0.00027397,2]
[385346061,1757790660079,-400.0,0.00027397,2]
[385346062,1757790660089,-400.0,0.00027397,2]
[385346063,1757790660099,-401.06785018,0.00027397,2]
[385346064,1757790660108,-400.0,0.00027397,2]
[385346065,1757790660118,-400.0,0.00027397,2]
[385346066,1757790660127,-400.0,0.00027397,2]
[385346067,1757790660137,-253.24469941,0.00027397,2]
[385346068,1757790660147,-1010.43,0.00027397,2]
[385346069,1757790660156,-400.0,0.00027397,2]
[385346070,1757790660166,-400.0,0.00027397,2]
[385346071,1757790660176,-400.0,0.00027397,2]
[385346072,1757790660185,-400.0,0.00027397,2]
[385346073,1757790660195,-618.9,0.00027397,2]
[385346074,1757790660204,-400.0,0.00027397,2]
[385346075,1757790660214,-400.0,0.00027397,2]
[385346076,1757790660224,-740.73,0.00027397,2]
[385346077,1757790660234,-955.87,0.00027397,2]
[385346078,1757790660243,-400.0,0.00027397,2]
[385346079,1757790660253,-617.0,0.00027397,2]
[385346080,1757790660262,-400.0,0.00027397,2]
[385346081,1757790660272,-1394.15,0.00027397,2]
[385346082,1757790660281,-645.46,0.00027397,2]
[385346083,1757790660291,-400.0,0.00027397,2]
[385346084,1757790660300,-400.0,0.00027397,2]
[385346085,1757790660310,-475.16,0.00027397,2]
[385346086,1757790660319,-400.0,0.00027397,2]
[385346087,1757790660329,-400.0,0.00027397,2]
[385346088,1757790660338,-400.0,0.00027397,2]
[385346089,1757790660348,-400.0,0.00027397,2]
[385346090,1757790660358,-400.0,0.00027397,2]
[385346091,1757790660367,-400.0,0.00027397,2]
[385346092,1757790660377,-1201.25,0.00027397,2]
[385346093,1757790660386,-1420.48,0.00027397,2]
[385346094,1757790660395,-436.7,0.00027397,2]
[385346095,1757790660405,-420.74194154,0.00027397,2]
[385346096,1757790660415,-886.97,0.00027397,2]
[385346097,1757790660424,-400.0,0.00027397,2]
[385346098,1757790660433,-400.0,0.00027397,2]
[385346099,1757790660443,-400.0,0.00027397,2]
[385346100,1757790660452,-400.0,0.00027397,2]
[385346101,1757790660462,-695.44,0.00027397,2]
[385346102,1757790660472,-400.0,0.00027397,2]
[385346103,1757790660481,-400.0,0.00027397,2]
[385346104,1757790660494,-1459.76,0.00027397,2]
[385346105,1757790660504,-869.21,0.00027397,2]
[385346106,1757790660513,-500.0,0.00027397,2]
[385346107,1757790660523,-500.0,0.00027397,2]
[385346108,1757790660533,-500.0,0.00027397,2]
[385346109,1757790660542,-500.0,0.00027397,2]
[385346110,1757790660555,-400.0,0.00027397,2]
[385346111,1757790660564,-373.75775287,0.00027397,2]
[385346112,1757790660574,-400.0,0.00027397,2]
[385346113,1757790660584,-400.0,0.00027397,2]
[385346114,1757790660595,-563.58,0.00027397,2]
[385346115,1757790660604,-400.0,0.00027397,2]
[385346116,1757790660614,-400.0,0.00027397,2]
[385346117,1757790660623,-400.0,0.00027397,2]
[385346118,1757790660634,-400.0,0.00027397,2]
[385346119,1757790660643,-400.0,0.00027397,2]
[385346120,1757790660654,-565.26,0.00027397,2]
[385346121,1757790660664,-400.0,0.00027397,2]
[385346122,1757790660674,-400.0,0.00027397,2]
[385346123,1757790660683,-400.0,0.00027397,2]
[385346124,1757790660693,-1134.89,0.00027397,2]
[385346125,1757790660702,-400.0,0.00027397,2]
[385346126,1757790660784,-1149.23,0.00027397,2]
[385346127,1757790660794,-400.0,0.00027397,2]
[385346128,1757790660803,-400.0,0.00027397,2]
[385346129,1757790660813,-404.56,0.00027397,2]
[385346130,1757790660823,-734.93,0.00027397,2]
[385346131,1757790660832,-400.0,0.00027397,2]
[385346132,1757790660842,-400.0,0.00027397,2]
[385346133,1757790660852,-400.0,0.00027397,2]
[385346134,1757790660861,-400.0,0.00027397,2]
[385346135,1757790660871,-400.0,0.00027397,2]
[385346136,1757790660880,-1190.66,0.00027397,2]
[385346137,1757790660889,-656.39,0.00027397,2]
[385346138,1757790660898,-400.0,0.00027397,2]
[385346139,1757790660907,-400.0,0.00027397,2]
[385346140,1757790660916,-400.0,0.00027397,2]
[385346141,1757790660926,-400.0,0.00027397,2]
[385346142,1757790660935,-1130.2,0.00027397,2]
[385346143,1757790660944,-400.0,0.00027397,2]
[385346144,1757790660953,-400.0,0.00027397,2]
[385346145,1757790660962,-400.0,0.00027397,2]
[385346146,1757790660972,-400.0,0.00027397,2]
[385346147,1757790660981,-400.0,0.00027397,2]
[385346148,1757790660990,-400.0,0.00027397,2]
[385346149,1757790660999,-400.0,0.00027397,2]
[385346150,1757790661009,-400.0,0.00027397,2]
[385346151,1757790661018,-400.0,0.00027397,2]
[385346152,1757790661027,-400.0,0.00027397,2]
[385346153,1757790661036,-400.0,0.00027397,2]
[385346154,1757790661046,-400.0,0.00027397,2]
[385346155,1757790661055,-914.37,0.00027397,2]
[385346156,1757790661064,-869.45,0.00027397,2]
[385346157,1757790661074,-400.0,0.00027397,2]
[385346158,1757790661083,-400.0,0.00027397,2]
[385346159,1757790661092,-400.0,0.00027397,2]
[385346160,1757790661101,-400.0,0.00027397,2]
[385346161,1757790661110,-400.0,0.00027397,2]
[385346162,1757790661119,-400.0,0.00027397,2]
[385346163,1757790661129,-459.11,0.00027397,2]
[385346164,1757790661138,-400.0,0.00027397,2]
[385346165,1757790661147,-1022.06,0.00027397,2]
[385346166,1757790661156,-400.0,0.00027397,2]
[385346167,1757790661165,-400.0,0.00027397,2]
[385346168,1757790661175,-400.0,0.00027397,2]
[385346169,1757790661184,-400.0,0.00027397,2]
[385346170,1757790661193,-516.71,0.00027397,2]
[385346171,1757790661202,-400.0,0.00027397,2]
[385346172,1757790661211,-400.0,0.00027397,2]
[385346173,1757790661221,-400.0,0.00027397,2]
[385346174,1757790661229,-400.0,0.00027397,2]
[385346175,1757790661239,-400.0,0.00027397,2]
[385346176,1757790661249,-400.0,0.00027397,2]
[385346177,1757790661258,-1379.73,0.00027397,2]
[385346178,1757790661267,-899.94,0.00027397,2]
[385346179,1757790661276,-400.0,0.00027397,2]
[385346180,1757790661285,-400.0,0.00027397,2]
[385346181,1757790661295,-866.46,0.00027397,2]
[385346182,1757790661305,-400.0,0.00027397,2]
[385346183,1757790661315,-400.0,0.00027397,2]
[385346184,1757790661324,-556.4,0.00027397,2]
[385346185,1757790661334,-400.0,0.00027397,2]
[385346186,1757790661344,-1195.99,0.00027397,2]
[385346187,1757790661354,-518.54,0.00027397,2]
[385346188,1757790661363,-1006.76,0.00027397,2]
[385346189,1757790661373,-1740.08,0.00027397,2]
[385346190,1757790661382,-400.0,0.00027397,2]
[385346191,1757790661392,-400.0,0.00027397,2]
[385346192,1757790661401,-400.0,0.00027397,2]
[385346193,1757790661411,-400.0,0.00027397,2]
[385346194,1757790661423,-400.0,0.00027397,2]
[385346195,1757790661432,-400.0,0.00027397,2]
[385346196,1757790661442,-400.0,0.00027397,2]
[385346197,1757790661452,-400.0,0.00027397,2]
[385346198,1757790661462,-400.0,0.00027397,2]
[385346199,1757790661471,-409.31248678,0.00027397,2]
[385346200,1757790661481,-668.89,0.00027397,2]
[385346201,1757790661491,-400.0,0.00027397,2]
[385346202,1757790661500,-400.25530107,0.00027397,2]
[385346203,1757790661510,-400.0,0.00027397,2]
[385346204,1757790661520,-400.0,0.00027397,2]
[385346205,1757790661529,-400.0,0.00027397,2]
[385346206,1757790661539,-529.54,0.00027397,2]
[385346207,1757790661548,-400.0,0.00027397,2]
[385346208,1757790661558,-400.0,0.00027397,2]
[385346209,1757790661567,-410.96006779,0.00027397,2]
[385346210,1757790661577,-400.0,0.00027397,2]
[385346211,1757790661586,-927.44,0.00027397,2]
[385346212,1757790661596,-400.0,0.00027397,2]
[385346213,1757790661606,-662.77,0.00027397,2]
[385346214,1757790661615,-501.96889834,0.00027397,2]
[385346215,1757790661624,-644.35,0.00027397,2]
[385346216,1757790661633,-400.0,0.00027397,2]
[385346217,1757790661643,-400.0,0.00027397,2]
[385346218,1757790661653,-400.0,0.00027397,2]
[385346219,1757790661662,-400.0,0.00027397,2]
[385346220,1757790661671,-400.0,0.00027397,2]
[385346221,1757790661681,-400.0,0.00027397,2]
[385346222,1757790661691,-400.0,0.00027397,2]
[385346223,1757790661700,-586.65,0.00027397,2]
[385346224,1757790661710,-899.11,0.00027397,2]
[385346225,1757790661719,-400.0,0.00027397,2]
[385346226,1757790661729,-744.19,0.00027397,2]
[385346227,1757790661739,-770.78,0.00027397,2]
[385346228,1757790661749,-400.0,0.00027397,2]
[385346229,1757790661758,-714.15,0.00027397,2]
[385346230,1757790661768,-453.23,0.00027397,2]
[385346231,1757790661778,-400.0,0.00027397,2]
[385346232,1757790661788,-400.0,0.00027397,2]
[385346233,1757790661798,-1002.56,0.00027397,2]
[385346234,1757790661809,-400.0,0.00027397,2]
[385346235,1757790661819,-809.12,0.00027397,2]
[385346236,1757790661829,-497.77538828,0.00027397,2]
[385346237,1757790661838,-400.0,0.00027397,2]
[385346238,1757790661851,-400.0,0.00027397,2]
[385346239,1757790661861,-400.0,0.00027397,2]
[385346240,1757790661872,-400.0,0.00027397,2]
[385346241,1757790661882,-400.0,0.00027397,2]
[385346242,1757790661892,-300.0,0.00027397,2]
[385346243,1757790661901,-400.0,0.00027397,2]
[385346244,1757790661911,-400.0,0.00027397,2]
[385346245,1757790661921,-400.0,0.00027397,2]
[385346246,1757790661931,-400.0,0.00027397,2]
[385346247,1757790661941,-920.75,0.00027397,2]
[385346248,1757790661951,-864.64,0.00027397,2]
[385346249,1757790661961,-400.0,0.00027397,2]
[385346250,1757790661971,-400.0,0.00027397,2]
[385346251,1757790661981,-400.0,0.00027397,2]
[385346252,1757790661991,-836.53,0.00027397,2]
[385346253,1757790662002,-400.0,0.00027397,2]
[385346254,1757790662011,-400.0,0.00027397,2]
[385346255,1757790662021,-400.0,0.00027397,2]
[385346256,1757790662030,-410.50911769,0.00027397,2]
[385346257,1757790662040,-400.0,0.00027397,2]
[385346258,1757790662050,-400.0,0.00027397,2]
[385346259,1757790662059,-400.0,0.00027397,2]
[385346260,1757790662069,-400.0,0.00027397,2]
[385346261,1757790662079,-400.0,0.00027397,2]
[385346262,1757790662089,-400.0,0.00027397,2]
[385346263,1757790662101,-400.0,0.00027397,2]
[385346264,1757790662110,-400.0,0.00027397,2]
[385346265,1757790662120,-400.0,0.00027397,2]
[385346266,1757790662129,-400.0,0.00027397,2]
[385346267,1757790662139,-759.84,0.00027397,2]
[385346268,1757790662149,-800.39,0.00027397,2]
[385346269,1757790662160,-400.0,0.00027397,2]
[385346270,1757790662171,-400.0,0.00027397,2]
[385346271,1757790662181,-438.06,0.00027397,2]
[385346272,1757790662191,-483.11,0.00027397,2]
[385346273,1757790662201,-890.46,0.00027397,2]
[385346274,1757790662211,-2863.78,0.00027397,2]
[385346275,1757790662221,-1067.29,0.00027397,2]
[385346276,1757790662232,-400.0,0.00027397,2]
[385346277,1757790662242,-621.88,0.00027397,2]
[385346278,1757790662251,-400.0,0.00027397,2]
[385346279,1757790662261,-440.32,0.00027397,2]
[385346280,1757790662271,-1123.98,0.00027397,2]
[385346281,1757790662280,-400.0,0.00027397,2]
[385346282,1757790662290,-500.0,0.00027397,2]
[385346283,1757790662300,-757.94,0.00027397,2]
[385346284,1757790662309,-500.0,0.00027397,2]
[385346285,1757790662319,-500.0,0.00027397,2]
[385346286,1757790662328,-438.33097006,0.00027397,2]
[385346287,1757790662338,-500.0,0.00027397,2]
[385346288,1757790662348,-400.0,0.00027397,2]
[385346289,1757790662359,-400.0,0.00027397,2]
[385346290,1757790662368,-557.63,0.00027397,2]
[385346291,1757790662378,-400.0,0.00027397,2]
[385346292,1757790662387,-861.65,0.00027397,2]
[385346293,1757790662397,-400.0,0.00027397,2]
[385346294,1757790662407,-803.76,0.00027397,2]
[385346295,1757790662419,-3574.86,0.00027397,2]
[385346296,1757790662430,-400.0,0.00027397,2]
[385346297,1757790662439,-3574.86,0.00027397,2]
[385346298,1757790662450,-835.94,0.00027397,2]
[385346299,1757790662462,-3574.86,0.00027397,2]
[385346300,1757790662472,-3574.86,0.00027397,2]
[385346301,1757790662483,-3574.86,0.00027397,2]
[385346302,1757790662498,-434.25,0.00027397,2]
[385346303,1757790662508,-400.0,0.00027397,2]
[385346304,1757790662518,-3574.86,0.00027397,2]
[385346305,1757790662528,-3574.86,0.00027397,2]
[385346306,1757790662537,-1000.0,0.00027397,2]
[385346307,1757790662547,-3574.86,0.00027397,2]
[385346308,1757790662556,-3574.86,0.00027397,2]
[385346309,1757790662567,-3574.86,0.00027397,2]
[385346310,1757790662577,-400.0,0.00027397,2]
[385346311,1757790662587,-3574.86,0.00027397,2]
[385346312,1757790662596,-3574.86,0.00027397,2]
[385346313,1757790662606,-400.0,0.00027397,2]
[385346314,1757790662615,-578.44,0.00027397,2]
[385346315,1757790662625,-3574.86,0.00027397,2]
[385346316,1757790662634,-400.0,0.00027397,2]
[385346317,1757790662644,-400.0,0.00027397,2]
[385346318,1757790662653,-550.07,0.00027397,2]
[385346319,1757790662663,-405.0063522,0.00027397,2]
[385346320,1757790662672,-400.0,0.00027397,2]
[385346321,1757790662682,-400.0,0.00027397,2]
[385346322,1757790662692,-800.87,0.00027397,2]
[385346323,1757790662701,-400.0,0.00027397,2]
[385346324,1757790662711,-400.0,0.00027397,2]
[385346325,1757790662720,-541.06,0.00027397,2]
[385346326,1757790662730,-400.0,0.00027397,2]
[385346327,1757790662740,-400.0,0.00027397,2]
[385346328,1757790662750,-400.0,0.00027397,2]
[385346329,1757790662759,-400.0,0.00027397,2]
[385346330,1757790662769,-400.0,0.00027397,2]
[385346331,1757790662779,-652.82,0.00027397,2]
[385346332,1757790662789,-400.0,0.00027397,2]
[385346333,1757790662798,-400.0,0.00027397,2]
[385346334,1757790662808,-400.0,0.00027397,2]
[385346335,1757790662817,-423.72,0.00027397,2]
[385346336,1757790662826,-400.0,0.00027397,2]
[385346337,1757790662836,-401.7126263,0.00027397,2]
[385346338,1757790662847,-1300.44,0.00027397,2]
[385346339,1757790662857,-400.0,0.00027397,2]
[385346340,1757790662867,-400.0,0.00027397,2]
[385346341,1757790662877,-439.16,0.00027397,2]
[385346342,1757790662886,-400.0,0.00027397,2]
[385346343,1757790662896,-400.0,0.00027397,2]
[385346344,1757790662906,-400.0,0.00027397,2]
[385346345,1757790662916,-400.0,0.00027397,2]
[385346346,1757790662925,-400.0,0.00027397,2]
[385346347,1757790662935,-400.0,0.00027397,2]
[385346348,1757790662945,-826.3,0.00027397,2]
[385346349,1757790662954,-400.0,0.00027397,2]
[385346350,1757790662964,-400.0,0.00027397,2]
[385346351,1757790662974,-400.0,0.00027397,2]
[385346352,1757790662984,-787.45,0.00027397,2]
[385346353,1757790662996,-944.98,0.00027397,2]
[385346354,1757790663007,-535.57,0.00027397,2]
[385346355,1757790663017,-400.0,0.00027397,2]
[385346356,1757790663027,-800.47,0.00027397,2]
[385346357,1757790663037,-1253.6,0.00027397,2]
[385346358,1757790663047,-400.0,0.00027397,2]
[385346359,1757790663057,-400.0,0.00027397,2]
[385346360,1757790663067,-400.0,0.00027397,2]
[385346361,1757790663077,-544.69,0.00027397,2]
[385346362,1757790663087,-400.0,0.00027397,2]
[385346363,1757790663097,-400.0,0.00027397,2]
[385346364,1757790663107,-400.0,0.00027397,2]
[385346365,1757790663117,-842.01,0.00027397,2]
[385346366,1757790663127,-400.0,0.00027397,2]
[385346367,1757790663137,-400.0,0.00027397,2]
[385346368,1757790663147,-1082.49,0.00027397,2]
[385346369,1757790663158,-400.0,0.00027397,2]
[385346370,1757790663168,-652.8,0.00027397,2]
[385346371,1757790663179,-556.97,0.00027397,2]
[385346372,1757790663190,-400.0,0.00027397,2]
[385346373,1757790663200,-489.49,0.00027397,2]
[385346374,1757790663210,-400.0,0.00027397,2]
[385346375,1757790663221,-400.0,0.00027397,2]
[385346376,1757790663231,-400.0,0.00027397,2]
[385346377,1757790663241,-400.0,0.00027397,2]
[385346378,1757790663251,-400.0,0.00027397,2]
[385346379,1757790663261,-400.0,0.00027397,2]
[385346380,1757790663271,-400.0,0.00027397,2]
[385346381,1757790663282,-400.0,0.00027397,2]
[385346382,1757790663292,-400.0,0.00027397,2]
[385346383,1757790663302,-439.06,0.00027397,2]
[385346384,1757790663312,-890.6,0.00027397,2]
[385346385,1757790663322,-589.14,0.00027397,2]
[385346386,1757790663333,-400.0,0.00027397,2]
[385346387,1757790663344,-583.29,0.00027397,2]
[385346388,1757790663354,-400.0,0.00027397,2]